fUST/lending_fUST_20251129
["ID","MTS","AMOUNT","RATE_DAILY","PERIOD"]
[395026947,1764349848595,-1499.06,0.00016711,2]
[395026949,1764349848604,-568.98,0.00016711,2]
[395026950,1764349848613,-1238.21,0.00016711,2]
[395026952,1764349848623,-500.0,0.00016711,2]
[395026954,1764349848632,-500.0,0.00016711,2]
[395026956,1764349848641,-500.0,0.00016711,2]
[395026958,1764349848650,-500.0,0.00016711,2]
[395026960,1764349848659,-500.0,0.00016711,2]
[395026962,1764349848667,-234.2366626,0.00016711,2]
[395026964,1764349848676,-546.97,0.00016711,2]
[395026966,1764349848685,-500.0,0.00016711,2]
[395026968,1764349848694,-500.0,0.00016711,2]
[395026970,1764349848705,-500.0,0.00016711,2]
[395026972,1764349848718,-500.0,0.00016711,2]
[395026974,1764349848727,-761.43,0.00016711,2]
[395026976,1764349848736,-500.0,0.00016711,2]
[395026978,1764349848745,-529.28315059,0.00016711,2]
[395026980,1764349848756,-500.0,0.00016711,2]
[395026982,1764349848765,-500.0,0.00016711,2]
[395026984,1764349848774,-500.0,0.00016711,2]
[395026986,1764349848784,-586.39,0.00016711,2]
[395026988,1764349848794,-629.04,0.00016711,2]
[395026990,1764349848802,-500.0,0.00016711,2]
[395026992,1764349848811,-500.0,0.00016711,2]
[395026994,1764349848820,-500.0,0.00016711,2]
[395026996,1764349848830,-500.0,0.00016711,2]
[395026997,1764349848839,-500.0,0.00016711,2]
[395026999,1764349848847,-500.0,0.00016711,2]
[395027001,1764349848857,-965.93,0.00016711,2]
[395027003,1764349848866,-500.0,0.00016711,2]
[395027005,1764349848875,-546.12967085,0.00016711,2]
[395027007,1764349848883,-409.74606339,0.00016711,2]
[395027009,1764349848892,-725.68,0.00016711,2]
[395027011,1764349848902,-500.0,0.00016711,2]
[395027013,1764349848911,-500.0,0.00016711,2]
[395027015,1764349848920,-500.0,0.00016711,2]
[395027017,1764349848929,-500.0,0.00016711,2]
[395027019,1764349848938,-500.0,0.00016711,2]
[395027020,1764349848947,-500.0,0.00016711,2]
[395027022,1764349848956,-500.0,0.00016711,2]
[395027024,1764349848966,-500.0,0.00016711,2]
[395027026,1764349848975,-1670.59,0.00016711,2]
[395027028,1764349848984,-445.79693252,0.00016711,2]
[395027030,1764349848994,-1230.52,0.00016711,2]
[395027032,1764349849003,-500.0,0.00016711,2]
[395027034,1764349849013,-500.0,0.00016711,2]
[395027036,1764349849022,-1372.34,0.00016711,2]
[395027038,1764349849032,-500.0,0.00016711,2]
[395027039,1764349849042,-509.93,0.00016711,2]
[395027041,1764349849051,-500.0,0.00016711,2]
[395027043,1764349849060,-1446.28,0.00016711,2]
[395027045,1764349849070,-545.07509586,0.00016711,2]
[395027047,1764349849080,-804.31,0.00016711,2]
[395027049,1764349849089,-500.0,0.00016711,2]
[395027051,1764349849099,-500.0,0.00016711,2]
[395027053,1764349849108,-1618.4,0.00016711,2]
[395027055,1764349849117,-500.0,0.00016711,2]
[395027057,1764349849127,-1245.74,0.00016711,2]
[395027059,1764349849136,-500.0,0.00016711,2]
[395027061,1764349849145,-500.0,0.00016711,2]
[395027063,1764349849154,-500.0,0.00016711,2]
[395027065,1764349849163,-1012.21,0.00016711,2]
[395027066,1764349849172,-500.0,0.00016711,2]
[395027068,1764349849182,-500.0,0.00016711,2]
[395027070,1764349849191,-500.0,0.00016711,2]
[395027072,1764349849201,-500.0,0.00016711,2]
[395027074,1764349849212,-500.0,0.00016711,2]
[395027076,1764349849221,-500.0,0.00016711,2]
[395027078,1764349849231,-500.0,0.00016711,2]
[395027080,1764349849240,-500.0,0.00016711,2]
[395027082,1764349849250,-500.0,0.00016711,2]
[395027084,1764349849259,-5148.75,0.00016711,2]
[395027086,1764349849268,-500.0,0.00016711,2]
[395027088,1764349849278,-500.0,0.00016711,2]
[395027090,1764349849288,-500.0,0.00016711,2]
[395027092,1764349849297,-260.36330431,0.00016711,2]
[395027094,1764349849306,-500.0,0.00016711,2]
[395027096,1764349849315,-509.51,0.00016711,2]
[395027098,1764349849325,-500.0,0.00016711,2]
[395027100,1764349849334,-742.96,0.00016711,2]
[395027101,1764349849343,-500.0,0.00016711,2]
[395027103,1764349849352,-600.15,0.00016711,2]
[395027105,1764349849361,-500.0,0.00016711,2]
[395027107,1764349849370,-200.0,0.00016711,2]
[395027109,1764349849379,-1119.05,0.00016711,2]
[395027111,1764349849388,-500.0,0.00016711,2]
[395027112,1764349849397,-200.0,0.00016711,2]
[395027114,1764349849407,-500.0,0.00016712,2]
[395027116,1764349849416,-500.0,0.00016712,2]
[395027118,1764349849426,-500.0,0.00016712,2]
[395027120,1764349849435,-500.0,0.00016712,2]
[395027122,1764349849444,-500.0,0.00016712,2]
[395027123,1764349849453,-500.0,0.00016712,2]
[395027125,1764349849462,-500.0,0.00016712,2]
[395027127,1764349849471,-500.0,0.00016712,2]
[395027129,1764349849480,-532.86,0.00016712,2]
[395027131,1764349849489,-624.69831168,0.00016712,2]
[395027133,1764349849499,-500.0,0.00016712,2]
[395027135,1764349849508,-786.77,0.00016712,2]
[395027136,1764349849518,-500.0,0.00016712,2]
[395027138,1764349849526,-864.42,0.00016712,2]
[395027140,1764349849536,-500.0,0.00016712,2]
[395027142,1764349849545,-597.0,0.00016712,2]
[395027144,1764349849554,-500.0,0.00016712,2]
[395027146,1764349849563,-500.0,0.00016712,2]
[395027148,1764349849572,-500.0,0.00016712,2]
[395027150,1764349849582,-500.0,0.00016712,2]
[395027152,1764349849591,-500.0,0.00016712,2]
[395027153,1764349849600,-500.0,0.00016712,2]
[395027155,1764349849609,-500.0,0.00016712,2]
[395027157,1764349849620,-1439.17,0.00016712,2]
[395027159,1764349849629,-500.0,0.00016712,2]
[395027161,1764349849638,-500.0,0.00016712,2]
[395027163,1764349849647,-500.0,0.00016712,2]
[395027165,1764349849656,-500.0,0.00016712,2]
[395027166,1764349849665,-500.0,0.00016712,2]
[395027168,1764349849674,-500.0,0.00016712,2]
[395027170,1764349849683,-500.0,0.00016712,2]
[395027172,1764349849693,-500.0,0.00016712,2]
[395027174,1764349849703,-500.0,0.00016712,2]
[395027176,1764349849715,-1689.29,0.00016712,2]
[395027178,1764349849725,-600.92,0.00016712,2]
[395027180,1764349849734,-553.28,0.00016712,2]
[395027182,1764349849743,-500.0,0.00016712,2]
[395027183,1764349849752,-500.0,0.00016712,2]
[395027185,1764349849762,-500.0,0.00016712,2]
[395027187,1764349849771,-500.0,0.00016712,2]
[395027189,1764349849780,-500.0,0.00016712,2]
[395027191,1764349849790,-500.0,0.00016712,2]
[395027193,1764349849799,-500.0,0.00016712,2]
[395027195,1764349849808,-569.98938844,0.00016712,2]
[395027196,1764349849816,-500.0,0.00016712,2]
[395027198,1764349849826,-500.0,0.00016712,2]
[395027200,1764349849835,-500.0,0.00016712,2]
[395027201,1764349849843,-518.09952286,0.00016712,2]
[395027203,1764349849852,-500.0,0.00016712,2]
[395027205,1764349849862,-539.12891241,0.00016712,2]
[395027207,1764349849871,-500.0,0.00016712,2]
[395027209,1764349849880,-500.0,0.00016712,2]
[395027211,1764349849889,-500.0,0.00016712,2]
[395027212,1764349849898,-500.0,0.00016712,2]
[395027214,1764349849907,-500.0,0.00016712,2]
[395027216,1764349849917,-1068.19,0.00016712,2]
[395027218,1764349849926,-1198.28,0.00016712,2]
[395027220,1764349849935,-500.0,0.00016712,2]
[395027221,1764349849944,-500.0,0.00016712,2]
[395027223,1764349849952,-500.0,0.00016712,2]
[395027225,1764349849962,-906.74,0.00016712,2]
[395027227,1764349849971,-1115.36,0.00016712,2]
[395027229,1764349849980,-500.0,0.00016712,2]
[395027230,1764349849992,-598.3301568,0.00016712,2]
[395027232,1764349850002,-1178.48,0.00016712,2]
[395027234,1764349850011,-500.0,0.00016712,2]
[395027236,1764349850020,-500.0,0.00016712,2]
[395027237,1764349850029,-512.41859258,0.00016712,2]
[395027239,1764349850038,-770.71,0.00016712,2]
[395027241,1764349850048,-916.28,0.00016712,2]
[395027243,1764349850057,-500.0,0.00016712,2]
[395027244,1764349850067,-206.53057082,0.00016712,2]
[395027246,1764349850076,-691.02,0.00016712,2]
[395027248,1764349850085,-500.0,0.00016712,2]
[395027250,1764349850094,-500.0,0.00016712,2]
[395027252,1764349850103,-500.0,0.00016712,2]
[395027253,1764349850112,-3456.48,0.00016712,2]
[395027255,1764349850121,-500.0,0.00016712,2]
[395027257,1764349850131,-521.52,0.00016712,2]
[395027259,1764349850140,-500.0,0.00016712,2]
[395027261,1764349850149,-500.0,0.00016712,2]
[395027262,1764349850158,-500.0,0.00016712,2]
[395027264,1764349850168,-500.0,0.00016712,2]
[395027266,1764349850178,-525.19,0.00016712,2]
[395027268,1764349850187,-500.0,0.00016712,2]
[395027269,1764349850196,-500.0,0.00016712,2]
[395027271,1764349850205,-500.0,0.00016712,2]
[395027273,1764349850214,-500.0,0.00016712,2]
[395027275,1764349850223,-500.0,0.00016712,2]
[395027277,1764349850232,-500.0,0.00016712,2]
[395027278,1764349850241,-1116.25,0.00016712,2]
[395027280,1764349850250,-1543.22,0.00016712,2]
[395027282,1764349850259,-1832.72,0.00016712,2]
[395027284,1764349850268,-500.0,0.00016712,2]
[395027286,1764349850277,-500.0,0.00016712,2]
[395027288,1764349850285,-500.0,0.00016712,2]
[395027289,1764349850294,-1043.29,0.00016712,2]
[395027291,1764349850303,-500.0,0.00016712,2]
[395027293,1764349850312,-1385.32,0.00016712,2]
[395027295,1764349850322,-500.0,0.00016712,2]
[395027297,1764349850332,-500.0,0.00016712,2]
[395027299,1764349850341,-500.0,0.00016712,2]
[395027300,1764349850351,-500.0,0.00016712,2]
[395027302,1764349850360,-500.0,0.00016712,2]
[395027304,1764349850369,-1266.53,0.00016712,2]
[395027306,1764349850378,-946.4,0.00016712,2]
[395027308,1764349850386,-500.0,0.00016712,2]
[395027309,1764349850396,-646.4,0.00016712,2]
[395027311,1764349850406,-500.0,0.00016712,2]
[395027313,1764349850415,-500.0,0.00016712,2]
[395027315,1764349850424,-500.0,0.00016712,2]
[395027317,1764349850432,-500.0,0.00016712,2]
[395027319,1764349850441,-512.17,0.00016712,2]
[395027320,1764349850450,-500.0,0.00016712,2]
[395027322,1764349850459,-873.56,0.00016712,2]
[395027324,1764349850468,-500.0,0.00016712,2]
[395027326,1764349850477,-607.87,0.00016712,2]
[395027328,1764349850486,-500.0,0.00016712,2]
[395027330,1764349850495,-947.44,0.00016712,2]
[395027331,1764349850504,-500.0,0.00016712,2]
[395027333,1764349850513,-645.42,0.00016712,2]
[395027335,1764349850522,-500.0,0.00016712,2]
[395027337,1764349850531,-604.0806141,0.00016712,2]
[395027339,1764349850540,-500.0,0.00016712,2]
[395027341,1764349850549,-392.13263281,0.00016712,2]
[395027342,1764349850558,-500.0,0.00016712,2]
[395027344,1764349850567,-740.96,0.00016712,2]
[395027346,1764349850576,-500.0,0.00016712,2]
[395027348,1764349850585,-500.0,0.00016712,2]
[395027350,1764349850594,-1216.68,0.00016712,2]
[395027352,1764349850603,-500.0,0.00016712,2]
[395027354,1764349850612,-909.93,0.00016712,2]
[395027355,1764349850621,-500.0,0.00016712,2]
[395027357,1764349850630,-500.0,0.00016712,2]
[395027359,1764349850639,-895.78,0.00016712,2]
[395027361,1764349850648,-778.34,0.00016712,2]
[395027363,1764349850657,-555.62,0.00016712,2]
[395027365,1764349850666,-500.0,0.00016712,2]
[395027367,1764349850675,-500.0,0.00016712,2]
[395027369,1764349850684,-500.0,0.00016712,2]
[395027370,1764349850694,-1474.16,0.00016712,2]
[395027372,1764349850703,-500.0,0.00016712,2]
[395027374,1764349850717,-500.0,0.00016712,2]
[395027376,1764349850727,-500.0,0.00016712,2]
[395027378,1764349850737,-500.0,0.00016712,2]
[395027379,1764349850746,-1372.77,0.00016712,2]
[395027381,1764349850758,-500.0,0.00016712,2]
[395027383,1764349850767,-1401.63,0.00016712,2]
[395027385,1764349850776,-500.0,0.00016712,2]
[395027387,1764349850786,-500.0,0.00016712,2]
[395027389,1764349850797,-2350.32,0.00016712,2]
[395027391,1764349850805,-500.0,0.00016712,2]
[395027392,1764349850814,-500.0,0.00016712,2]
[395027394,1764349850824,-500.0,0.00016712,2]
[395027396,1764349850833,-500.0,0.00016712,2]
[395027398,1764349850842,-500.0,0.00016712,2]
[395027400,1764349850851,-500.0,0.00016712,2]
[395027402,1764349850860,-1181.23,0.00016712,2]
[395027404,1764349850869,-500.0,0.00016712,2]
[395027406,1764349850878,-397.33554394,0.00016712,2]
[395027408,1764349850887,-916.23,0.00016712,2]
[395027409,1764349850897,-475.40764716,0.00016712,2]
[395027411,1764349850906,-500.0,0.00016712,2]
[395027413,1764349850915,-299.98974933,0.00016712,2]
[395027415,1764349850925,-500.0,0.00016712,2]
[395027417,1764349850934,-500.0,0.00016712,2]
[395027419,1764349850943,-500.0,0.00016712,2]
[395027421,1764349850952,-888.81,0.00016712,2]
[395027423,1764349850961,-831.54,0.00016712,2]
[395027425,1764349850970,-500.0,0.00016712,2]
[395027427,1764349850980,-1052.05,0.00016712,2]
[395027429,1764349850988,-500.0,0.00016712,2]
[395027430,1764349850998,-500.0,0.00016712,2]
[395027432,1764349851007,-1066.09,0.00016712,2]
[395027445,1764349851126,-500.0,0.00016712,2]
[395027447,1764349851136,-1817.24,0.00016712,2]
[395027448,1764349851145,-500.0,0.00016712,2]
[395027450,1764349851154,-500.0,0.00016712,2]
[395027452,1764349851164,-500.0,0.00016712,2]
[395027454,1764349851173,-1401.11,0.00016712,2]
[395027456,1764349851183,-500.0,0.00016712,2]
[395027458,1764349851192,-500.0,0.00016712,2]
[395027460,1764349851202,-500.0,0.00016712,2]
[395027462,1764349851211,-846.95,0.00016712,2]
[395027464,1764349851220,-500.0,0.00016712,2]
[395027466,1764349851230,-774.25,0.00016712,2]
[395027468,1764349851239,-500.0,0.00016712,2]
[395027470,1764349851248,-3298.42,0.00016712,2]
[395027472,1764349851257,-1731.37,0.00016712,2]
[395027474,1764349851267,-500.0,0.00016712,2]
[395027475,1764349851276,-500.0,0.00016712,2]
[395027477,1764349851284,-624.53,0.00016712,2]
[395027479,1764349851293,-622.98,0.00016712,2]
[395027480,1764349851303,-500.0,0.00016712,2]
[395027482,1764349851312,-500.0,0.00016712,2]
[395027484,1764349851321,-599.04,0.00016712,2]
[395027486,1764349851331,-660.93,0.00016712,2]
[395027487,1764349851340,-500.0,0.00016712,2]
[395027489,1764349851350,-834.75,0.00016712,2]
[395027491,1764349851359,-500.0,0.00016712,2]
[395027493,1764349851369,-500.0,0.00016712,2]
[395027495,1764349851378,-795.27,0.00016712,2]
[395027497,1764349851388,-500.0,0.00016712,2]
[395027498,1764349851397,-500.0,0.00016712,2]
[395027500,1764349851407,-554.69021426,0.00016712,2]
[395027502,1764349851416,-500.0,0.00016712,2]
[395027504,1764349851426,-500.0,0.00016712,2]
[395027506,1764349851435,-238.28487706,0.00016712,2]
[395027507,1764349851444,-500.0,0.00016712,2]
[395027509,1764349851453,-500.0,0.00016712,2]
[395027511,1764349851461,-500.0,0.00016712,2]
[395027513,1764349851470,-500.0,0.00016712,2]
[395027515,1764349851479,-946.73,0.00016712,2]
[395027517,1764349851489,-500.0,0.00016712,2]
[395027519,1764349851498,-500.0,0.00016712,2]
[395027520,1764349851507,-500.0,0.00016712,2]
[395027522,1764349851516,-1911.07,0.00016712,2]
[395027524,1764349851525,-500.0,0.00016712,2]
[395027526,1764349851535,-500.0,0.00016712,2]
[395027528,1764349851544,-500.0,0.00016712,2]
[395027530,1764349851553,-500.0,0.00016712,2]
[395027532,1764349851562,-500.0,0.00016712,2]
[395027533,1764349851572,-1548.23,0.00016712,2]
[395027535,1764349851582,-765.57,0.00016712,2]
[395027537,1764349851591,-500.0,0.00016712,2]
[395027539,1764349851601,-500.0,0.00016712,2]
[395027541,1764349851610,-1766.09,0.00016712,2]
[395027543,1764349851619,-500.0,0.00016712,2]
[395027545,1764349851628,-507.55,0.00016712,2]
[395027547,1764349851637,-500.0,0.00016712,2]
[395027548,1764349851647,-2845.76,0.00016712,2]
[395027550,1764349851657,-500.0,0.00016712,2]
[395027552,1764349851666,-500.0,0.00016712,2]
[395027554,1764349851675,-503.81,0.00016712,2]
[395027556,1764349851684,-606.27,0.00016712,2]
[395027557,1764349851694,-1040.62,0.00016712,2]
[395027559,1764349851703,-500.0,0.00016712,2]
[395027561,1764349851718,-746.11,0.00016712,2]
[395027563,1764349851728,-500.0,0.00016712,2]
[395027565,1764349851737,-500.0,0.00016712,2]
[395027567,1764349851747,-488.98843644,0.00016712,2]
[395027568,1764349851758,-705.27,0.00016712,2]
[395027570,1764349851767,-500.0,0.00016712,2]
[395027572,1764349851776,-735.31,0.00016712,2]
[395027574,1764349851786,-1925.42,0.00016712,2]
[395027576,1764349851796,-500.0,0.00016712,2]
[395027577,1764349851805,-500.0,0.00016712,2]
[395027579,1764349851815,-500.0,0.00016712,2]
[395027581,1764349851825,-533.67808678,0.00016712,2]
[395027583,1764349851835,-500.0,0.00016712,2]
[395027585,1764349851845,-500.0,0.00016712,2]
[395027587,1764349851855,-625.16,0.00016712,2]
[395027589,1764349851864,-500.0,0.00016712,2]
[395027591,1764349851874,-500.0,0.00016712,2]
[395027593,1764349851884,-827.43,0.00016712,2]
[395027595,1764349851894,-500.0,0.00016712,2]
[395027596,1764349851903,-500.0,0.00016712,2]
[395027598,1764349851912,-500.0,0.00016712,2]
[395027600,1764349851921,-500.0,0.00016712,2]
[395027602,1764349851930,-500.0,0.00016712,2]
[395027604,1764349851939,-500.0,0.00016712,2]
[395027606,1764349851948,-522.19,0.00016712,2]
[395027608,1764349851958,-500.0,0.00016712,2]
[395027610,1764349851967,-500.0,0.00016712,2]
[395027612,1764349851976,-500.0,0.00016712,2]
[395027613,1764349851985,-500.0,0.00016712,2]
[395027615,1764349851995,-500.0,0.00016712,2]
[395027617,1764349852004,-500.0,0.00016712,2]
[395027619,1764349852013,-584.43,0.00016712,2]
[395027621,1764349852022,-587.82,0.00016712,2]
[395027623,1764349852031,-500.0,0.00016712,2]
[395027625,1764349852040,-500.0,0.00016712,2]
[395027627,1764349852050,-500.0,0.00016712,2]
[395027629,1764349852059,-1034.49,0.00016712,2]
[395027630,1764349852068,-500.0,0.00016712,2]
[395027632,1764349852078,-518.68,0.00016712,2]
[395027634,1764349852087,-1242.24,0.00016712,2]
[395027636,1764349852096,-500.0,0.00016712,2]
[395027638,1764349852106,-500.0,0.00016712,2]
[395027640,1764349852115,-534.94,0.00016712,2]
[395027642,1764349852125,-799.75,0.00016712,2]
[395027644,1764349852134,-3567.73,0.00016712,2]
[395027646,1764349852144,-238.26841119,0.00016712,2]
[395027648,1764349852154,-500.0,0.00016712,2]
[395027650,1764349852163,-500.0,0.00016712,2]
[395027652,1764349852173,-2630.4,0.00016712,2]
[395027654,1764349852182,-500.0,0.00016712,2]
[395027656,1764349852191,-2913.19,0.00016712,2]
[395027658,1764349852200,-500.0,0.00016712,2]
[395027660,1764349852210,-500.0,0.00016712,2]
[395027661,1764349852219,-500.0,0.00016712,2]
[395027663,1764349852228,-500.0,0.00016712,2]
[395027665,1764349852237,-1037.67,0.00016712,2]
[395027667,1764349852246,-500.0,0.00016712,2]
[395027669,1764349852256,-1093.63,0.00016712,2]
[395027671,1764349852265,-2172.45,0.00016712,2]
[395027673,1764349852274,-500.0,0.00016712,2]
[395027675,1764349852283,-500.0,0.00016712,2]
[395027676,1764349852292,-500.0,0.00016712,2]
[395027678,1764349852301,-845.59,0.00016712,2]
[395027680,1764349852311,-826.28,0.00016712,2]
[395027682,1764349852320,-449.28694012,0.00016712,2]
[395027684,1764349852329,-641.74776884,0.00016712,2]
[395027686,1764349852338,-784.0,0.00016712,2]
[395027688,1764349852348,-1013.75,0.00016712,2]
[395027690,1764349852358,-550.8,0.00016712,2]
[395027692,1764349852368,-500.0,0.00016712,2]
[395027694,1764349852377,-860.43,0.00016712,2]
[395027696,1764349852386,-500.0,0.00016712,2]
[395027698,1764349852395,-500.0,0.00016712,2]
[395027700,1764349852405,-658.47,0.00016712,2]
[395027701,1764349852414,-500.0,0.00016712,2]
[395027703,1764349852423,-1291.03,0.00016712,2]
[395027705,1764349852432,-3988.81,0.00016712,2]
[395027707,1764349852442,-500.0,0.00016712,2]
[395027709,1764349852451,-500.0,0.00016712,2]
[395027711,1764349852460,-1106.46,0.00016712,2]
[395027713,1764349852469,-500.0,0.00016712,2]
[395027715,1764349852479,-701.64,0.00016712,2]
[395027717,1764349852488,-947.49,0.00016712,2]
[395027719,1764349852497,-2106.72,0.00016712,2]
[395027721,1764349852507,-1585.57,0.00016712,2]
[395027722,1764349852516,-4652.65,0.00016712,2]
[395027724,1764349852526,-591.8,0.00016712,2]
[395027725,1764349852535,-939.58,0.00016712,2]
[395027726,1764349852544,-548.14,0.00016712,2]
[395027727,1764349852554,-290.50338379,0.00016712,2]
[395027728,1764349852563,-597.41,0.00016712,2]
[395027729,1764349852573,-500.0,0.00016712,2]
[395027730,1764349852583,-500.0,0.00016712,2]
[395027731,1764349852593,-2873.21,0.00016712,2]
[395027732,1764349852602,-500.0,0.00016712,2]
[395027733,1764349852612,-500.0,0.00016712,2]
[395027734,1764349852621,-500.0,0.00016712,2]
[395027735,1764349852630,-586.9,0.00016712,2]
[395027736,1764349852639,-500.0,0.00016712,2]
[395027737,1764349852649,-931.96,0.00016712,2]
[395027738,1764349852664,-1984.09,0.00016712,2]
[395027739,1764349852674,-203.6715612,0.00016712,2]
[395027740,1764349852683,-500.0,0.00016712,2]
[395027741,1764349852692,-500.0,0.00016712,2]
[395027742,1764349852702,-500.0,0.00016712,2]
[395027743,1764349852712,-1305.01,0.00016712,2]
[395027744,1764349852724,-500.0,0.00016712,2]
[395027745,1764349852733,-500.0,0.00016712,2]
[395027746,1764349852743,-500.0,0.00016712,2]
[395027747,1764349852753,-500.0,0.00016712,2]
[395027748,1764349852762,-1142.58,0.00016712,2]
[395027749,1764349852772,-500.0,0.00016712,2]
[395027750,1764349852781,-982.4,0.00016712,2]
[395027751,1764349852791,-1746.14,0.00016712,2]
[395027752,1764349852801,-500.0,0.00016712,2]
[395027753,1764349852810,-2858.68,0.00016712,2]
[395027754,1764349852819,-500.0,0.00016712,2]
[395027755,1764349852829,-1000.0,0.00016712,2]
[395027756,1764349852839,-5783.54,0.00016712,2]
[395027757,1764349852848,-532.24,0.00016712,2]
[395027758,1764349852857,-1059.09,0.00016712,2]
[395027760,1764349852866,-500.0,0.00016712,2]
[395027761,1764349852875,-818.76,0.00016712,2]
[395027764,1764349852885,-500.0,0.00016712,2]
[395027765,1764349852894,-500.0,0.00016712,2]
[395027767,1764349852903,-500.0,0.00016712,2]
[395027770,1764349852912,-500.0,0.00016712,2]
[395027771,1764349852922,-2309.83,0.00016712,2]
[395027774,1764349852931,-500.0,0.00016712,2]
[395027776,1764349852941,-568.08,0.00016712,2]
[395027777,1764349852950,-500.0,0.00016712,2]
[395027779,1764349852960,-2117.99,0.00016712,2]
[395027781,1764349852970,-500.0,0.00016712,2]
[395027783,1764349852979,-500.0,0.00016712,2]
[395027786,1764349852989,-500.0,0.00016712,2]
[395027788,1764349852998,-655.16,0.00016712,2]
[395027790,1764349853008,-523.39,0.00016712,2]
[395027792,1764349853017,-500.0,0.00016712,2]
[395027794,1764349853027,-500.0,0.00016712,2]
[395027795,1764349853037,-4452.46,0.00016712,2]
[395027797,1764349853047,-561.74320026,0.00016712,2]
[395027799,1764349853056,-500.0,0.00016712,2]
[395027801,1764349853066,-500.0,0.00016712,2]
[395027804,1764349853076,-1968.77,0.00016712,2]
[395027806,1764349853086,-500.0,0.00016712,2]
[395027807,1764349853096,-655.59,0.00016712,2]
[395027810,1764349853106,-1829.49,0.00016712,2]
[395027812,1764349853115,-825.6,0.00016712,2]
[395027813,1764349853124,-500.0,0.00016712,2]
[395027815,1764349853134,-1105.64,0.00016712,2]
[395027817,1764349853144,-549.54,0.00016712,2]
[395027819,1764349853153,-1910.2,0.00016712,2]
[395027821,1764349853163,-1102.58,0.00016712,2]
[395027823,1764349853175,-500.0,0.00016712,2]
[395027825,1764349853184,-500.0,0.00016712,2]
[395027827,1764349853194,-1144.51,0.00016712,2]
[395027829,1764349853204,-851.43,0.00016712,2]
[395027831,1764349853214,-4322.13,0.00016712,2]
[395027833,1764349853224,-1354.67,0.00016712,2]
[395027835,1764349853233,-500.0,0.00016712,2]
[395027837,1764349853242,-1792.73,0.00016712,2]
[395027867,1764349853542,-591.14,0.00016712,2]
[395027869,1764349853552,-500.0,0.00016712,2]
[395027871,1764349853562,-4068.88,0.00016712,2]
[395027873,1764349853572,-615.24,0.00016712,2]
[395027875,1764349853582,-500.0,0.00016712,2]
[395027877,1764349853591,-1521.1,0.00016712,2]
[395027879,1764349853601,-760.06,0.00016712,2]
[395027881,1764349853611,-4318.96,0.00016712,2]
[395027883,1764349853620,-500.0,0.00016712,2]
[395027885,1764349853630,-500.0,0.00016712,2]
[395027887,1764349853639,-500.0,0.00016712,2]
[395027889,1764349853649,-500.0,0.00016712,2]
[395027892,1764349853659,-6454.44,0.00016712,2]
[395027893,1764349853669,-977.47,0.00016712,2]
[395027896,1764349853680,-988.6,0.00016712,2]